Workbook

Sheet Sheet2
A1: 吉州区2024年全省中小学教师招聘考生成绩及入闱体检对象公示
A2: 小学语文招聘12人
A3: 序号 | B3: 姓名 | C3: 报考职位 | D3: 笔试成绩 （250分） | E3: 面试成绩 （100分） | F3: 笔试成绩折算 （20%） | G3: 面试成绩折算 （50%） | H3: 总分 | I3: 名次 | J3: 备注
A4: 1 | B4: 饶菲 | C4: 小学语文 | D4: 210.0 | E4: 91.80 | F4: =D4*0.2 -> 42.00 | G4: =E4*0.5 -> 45.9 | H4: =F4+G4 -> 87.90 | I4: 1 | J4: 入围体检
A5: 2 | B5: 万夏桐 | C5: 小学语文 | D5: 213.5 | E5: 90.10 | F5: 42.70 | G5: 45.05 | H5: 87.75 | I5: 2 | J5: 入围体检
A6: 3 | B6: 易舒琪 | C6: 小学语文 | D6: 211.0 | E6: 88.60 | F6: 42.20 | G6: 44.3 | H6: 86.50 | I6: 3 | J6: 入围体检
A7: 4 | B7: 欧阳婧婧 | C7: 小学语文 | D7: 201.0 | E7: 92.14 | F7: 40.20 | G7: 46.07 | H7: 86.27 | I7: 4 | J7: 入围体检
A8: 5 | B8: 蔡微 | C8: 小学语文 | D8: 207.0 | E8: 88.90 | F8: 41.40 | G8: 44.45 | H8: 85.85 | I8: 5 | J8: 入围体检
A9: 6 | B9: 彭朝虹 | C9: 小学语文 | D9: 202.5 | E9: 89.68 | F9: 40.50 | G9: 44.84 | H9: 85.34 | I9: 6 | J9: 入围体检
A10: 7 | B10: 陈姝燕 | C10: 小学语文 | D10: 200.5 | E10: 90.46 | F10: 40.10 | G10: 45.23 | H10: 85.33 | I10: 7 | J10: 入围体检
A11: 8 | B11: 郑雅琴 | C11: 小学语文 | D11: 206.5 | E11: 87.90 | F11: 41.30 | G11: 43.95 | H11: 85.25 | I11: 8 | J11: 入围体检
A12: 9 | B12: 王芝姚 | C12: 小学语文 | D12: 204.0 | E12: 88.66 | F12: 40.80 | G12: 44.33 | H12: 85.13 | I12: 9 | J12: 入围体检
A13: 10 | B13: 李远蓉 | C13: 小学语文 | D13: 206.0 | E13: 87.48 | F13: 41.20 | G13: 43.74 | H13: 84.94 | I13: 10 | J13: 入围体检
A14: 11 | B14: 许小丽 | C14: 小学语文 | D14: 206.0 | E14: 86.72 | F14: 41.20 | G14: 43.36 | H14: 84.56 | I14: 11 | J14: 入围体检
A15: 12 | B15: 余芳 | C15: 小学语文 | D15: 202.5 | E15: 87.78 | F15: 40.50 | G15: 43.89 | H15: 84.39 | I15: 12 | J15: 入围体检
A16: 13 | B16: 罗兰 | C16: 小学语文 | D16: 203.5 | E16: 87.30 | F16: 40.70 | G16: 43.65 | H16: 84.35 | I16: 13
A17: 14 | B17: 游娜 | C17: 小学语文 | D17: 205.0 | E17: 86.62 | F17: 41.00 | G17: 43.31 | H17: 84.31 | I17: 14
A18: 15 | B18: 张志飞 | C18: 小学语文 | D18: 208.5 | E18: 85.10 | F18: 41.70 | G18: 42.55 | H18: 84.25 | I18: 15
A19: 16 | B19: 黄玉兰 | C19: 小学语文 | D19: 202.0 | E19: 87.66 | F19: 40.40 | G19: 43.83 | H19: 84.23 | I19: 16
A20: 17 | B20: 龙瑞雪 | C20: 小学语文 | D20: 203.5 | E20: 87.00 | F20: 40.70 | G20: 43.5 | H20: 84.20 | I20: 17
A21: 18 | B21: 黄丽萍 | C21: 小学语文 | D21: 200.0 | E21: 88.02 | F21: 40.00 | G21: 44.01 | H21: 84.01 | I21: 18
A22: 19 | B22: 朱建桢 | C22: 小学语文 | D22: 201.0 | E22: 87.56 | F22: 40.20 | G22: 43.78 | H22: 83.98 | I22: 19
A23: 20 | B23: 曾倩 | C23: 小学语文 | D23: 203.0 | E23: 86.24 | F23: 40.60 | G23: 43.12 | H23: 83.72 | I23: 20
A24: 21 | B24: 张婷婷 | C24: 小学语文 | D24: 198.5 | E24: 87.78 | F24: 39.70 | G24: 43.89 | H24: 83.59 | I24: 21
A25: 22 | B25: 郭招莲 | C25: 小学语文 | D25: 201.5 | E25: 85.78 | F25: 40.30 | G25: 42.89 | H25: 83.19 | I25: 22
A26: 23 | B26: 卢思盈 | C26: 小学语文 | D26: 202.0 | E26: 85.02 | F26: 40.40 | G26: 42.51 | H26: 82.91 | I26: 23
A27: 24 | B27: 邹慧 | C27: 小学语文 | D27: 199.0 | E27: 85.90 | F27: 39.80 | G27: 42.95 | H27: 82.75 | I27: 24
A28: 25 | B28: 查子婷 | C28: 小学语文 | D28: 198.5 | E28: 83.78 | F28: 39.70 | G28: 41.89 | H28: 81.59 | I28: 25
A29: 26 | B29: 张晓悦 | C29: 小学语文 | D29: 198.5 | E29: 81.94 | F29: 39.70 | G29: 40.97 | H29: 80.67 | I29: 26
A30: 初中语文（特岗）招聘1人
A31: 序号 | B31: 姓名 | C31: 报考职位 | D31: 笔试成绩 （250分） | E31: 面试成绩 （100分） | F31: 笔试成绩折算 （20%） | G31: 面试成绩折算 （50%） | H31: 总分 | I31: 名次 | J31: 备注
A32: 1 | B32: 曾倩 | C32: 初中语文 | D32: 178.5 | E32: 88.66 | F32: =D32*0.2 -> 35.70 | G32: =E32*0.5 -> 44.33 | H32: =F32+G32 -> 80.03 | I32: 1 | J32: 入围体检
A33: 2 | B33: 郭文婷 | C33: 初中语文 | D33: 173.5 | E33: 87.98 | F33: 34.70 | G33: 43.99 | H33: 78.69 | I33: 2
A34: 3 | B34: 熊迪娜 | C34: 初中语文 | D34: 166.5 | E34: 84.38 | F34: 33.30 | G34: 42.19 | H34: 75.49 | I34: 3
A35: 初中语文招聘6人
A36: 序号 | B36: 姓名 | C36: 报考职位 | D36: 笔试成绩 （250分） | E36: 面试成绩 （100分） | F36: 笔试成绩折算 （20%） | G36: 面试成绩折算 （50%） | H36: 总分 | I36: 名次 | J36: 备注
A37: 1 | B37: 钟伟粮 | C37: 初中语文 | D37: 206.5 | E37: 91.5 | F37: =D37*0.2 -> 41.30 | G37: =E37*0.5 -> 45.75 | H37: =F37+G37 -> 87.05 | I37: 1 | J37: 入围体检
A38: 2 | B38: 邹铄婷 | C38: 初中语文 | D38: 204.0 | E38: 90.98 | F38: 40.80 | G38: 45.49 | H38: 86.29 | I38: 2 | J38: 入围体检
A39: 3 | B39: 凌芳 | C39: 初中语文 | D39: 208.0 | E39: 89.24 | F39: 41.60 | G39: 44.62 | H39: 86.22 | I39: 3 | J39: 入围体检
A40: 4 | B40: 彭丽敏 | C40: 初中语文 | D40: 202.0 | E40: 91.38 | F40: 40.40 | G40: 45.69 | H40: 86.09 | I40: 4 | J40: 入围体检
A41: 5 | B41: 童莹 | C41: 初中语文 | D41: 199.0 | E41: 91.30 | F41: 39.80 | G41: 45.65 | H41: 85.45 | I41: 5 | J41: 入围体检
A42: 6 | B42: 欧阳丽萍 | C42: 初中语文 | D42: 202.5 | E42: 88.74 | F42: 40.50 | G42: 44.37 | H42: 84.87 | I42: 6 | J42: 入围体检
A43: 7 | B43: 于丹丹 | C43: 初中语文 | D43: 191.0 | E43: 92.82 | F43: 38.20 | G43: 46.41 | H43: 84.61 | I43: 7
A44: 8 | B44: 余顺通 | C44: 初中语文 | D44: 195.5 | E44: 90.42 | F44: 39.10 | G44: 45.21 | H44: 84.31 | I44: 8
A45: 9 | B45: 魏丹 | C45: 初中语文 | D45: 194.5 | E45: 90.72 | F45: 38.90 | G45: 45.36 | H45: 84.26 | I45: 9
A46: 10 | B46: 邓嘉凡 | C46: 初中语文 | D46: 198.5 | E46: 88.82 | F46: 39.70 | G46: 44.41 | H46: 84.11 | I46: 10
A47: 11 | B47: 刘慧 | C47: 初中语文 | D47: 191.0 | E47: 90.92 | F47: 38.20 | G47: 45.46 | H47: 83.66 | I47: 11
A48: 12 | B48: 黄文丝 | C48: 初中语文 | D48: 189.0 | E48: 91.10 | F48: 37.80 | G48: 45.55 | H48: 83.35 | I48: 12
A49: 13 | B49: 郑盟 | C49: 初中语文 | D49: 185.5 | E49: 91.74 | F49: 37.10 | G49: 45.87 | H49: 82.97 | I49: 13
A50: 14 | B50: 焦姝芸 | C50: 初中语文 | D50: 192.5 | E50: 87.84 | F50: 38.50 | G50: 43.92 | H50: 82.42 | I50: 14
A51: 15 | B51: 曾茜 | C51: 初中语文 | D51: 183.0 | E51: 86.06 | F51: 36.60 | G51: 43.03 | H51: 79.63 | I51: 15
A52: 小学语文（特岗）招聘5人
A53: 序号 | B53: 姓名 | C53: 报考职位 | D53: 笔试成绩 （250分） | E53: 面试成绩 （100分） | F53: 笔试成绩折算 （20%） | G53: 面试成绩折算 （50%） | H53: 总分 | I53: 名次 | J53: 备注
A54: 1 | B54: 罗艳萍 | C54: 小学语文 | D54: 201.5 | E54: 93.56 | F54: =D54*0.2 -> 40.30 | G54: =E54*0.5 -> 46.78 | H54: =F54+G54 -> 87.08 | I54: 1 | J54: 入围体检
A55: 2 | B55: 陈娇弟 | C55: 小学语文 | D55: 202.5 | E55: 91.30 | F55: 40.50 | G55: 45.65 | H55: 86.15 | I55: 2 | J55: 入围体检
A56: 3 | B56: 黎雨屏 | C56: 小学语文 | D56: 203.5 | E56: 90.76 | F56: 40.70 | G56: 45.38 | H56: 86.08 | I56: 3 | J56: 入围体检
A57: 4 | B57: 肖钰 | C57: 小学语文 | D57: 201.5 | E57: 91.50 | F57: 40.30 | G57: 45.75 | H57: 86.05 | I57: 4 | J57: 入围体检
A58: 5 | B58: 熊小莲 | C58: 小学语文 | D58: 206 | E58: 89.40 | F58: 41.20 | G58: 44.7 | H58: 85.90 | I58: 5 | J58: 入围体检
A59: 6 | B59: 彭文娣 | C59: 小学语文 | D59: 198.5 | E59: 92.12 | F59: 39.70 | G59: 46.06 | H59: 85.76 | I59: 6
A60: 7 | B60: 柯雨娇 | C60: 小学语文 | D60: 202.5 | E60: 89.88 | F60: 40.50 | G60: 44.94 | H60: 85.44 | I60: 7
A61: 8 | B61: 曾小慧 | C61: 小学语文 | D61: 205.5 | E61: 88.12 | F61: 41.10 | G61: 44.06 | H61: 85.16 | I61: 8
A62: 9 | B62: 刘桥南 | C62: 小学语文 | D62: 199 | E62: 89.44 | F62: 39.80 | G62: 44.72 | H62: 84.52 | I62: 9
A63: 10 | B63: 邹宇婕 | C63: 小学语文 | D63: 197.5 | E63: 89.84 | F63: 39.50 | G63: 44.92 | H63: 84.42 | I63: 10
A64: 11 | B64: 李红梅 | C64: 小学语文 | D64: 201 | E64: 87.66 | F64: 40.20 | G64: 43.83 | H64: 84.03 | I64: 11
A65: 12 | B65: 刘佳佳 | C65: 小学语文 | D65: 196.5 | E65: 89.44 | F65: 39.30 | G65: 44.72 | H65: 84.02 | I65: 12
A66: 13 | B66: 王宇 | C66: 小学语文 | D66: 197.5 | E66: 88.96 | F66: 39.50 | G66: 44.48 | H66: 83.98 | I66: 13
A67: 14 | B67: 刘华 | C67: 小学语文 | D67: 198 | E67: 86.60 | F67: 39.60 | G67: 43.30 | H67: 82.90 | I67: 14
A68: 15 | B68: 何雅琴 | C68: 小学语文 | D68: 203 | E68: 83.22 | F68: 40.60 | G68: 41.61 | H68: 82.21 | I68: 15
A69: 小学数学招聘12人
A70: 序号 | B70: 姓名 | C70: 报考职位 | D70: 笔试成绩 （250分） | E70: 面试成绩 （100分） | F70: 笔试成绩折算 （20%） | G70: 面试成绩折算 （50%） | H70: 总分 | I70: 名次 | J70: 备注
A71: 1 | B71: 李德湘 | C71: 小学数学 | D71: 219.0 | E71: 90.06 | F71: =D71*0.2 -> 43.80 | G71: =E71*0.5 -> 45.03 | H71: =F71+G71 -> 88.83 | I71: 1 | J71: 入围体检
A72: 2 | B72: 龚秋燕 | C72: 小学数学 | D72: 214.0 | E72: 90.36 | F72: 42.80 | G72: 45.18 | H72: 87.98 | I72: 2 | J72: 入围体检
A73: 3 | B73: 左紫琼 | C73: 小学数学 | D73: 209.5 | E73: 91.96 | F73: 41.90 | G73: 45.98 | H73: 87.88 | I73: 3 | J73: 入围体检
A74: 4 | B74: 童恒乐 | C74: 小学数学 | D74: 209.5 | E74: 91.80 | F74: 41.90 | G74: 45.90 | H74: 87.80 | I74: 4 | J74: 入围体检
A75: 5 | B75: 曾瑶 | C75: 小学数学 | D75: 209.5 | E75: 91.40 | F75: 41.90 | G75: 45.70 | H75: 87.60 | I75: 5 | J75: 入围体检
A76: 6 | B76: 谢思琴 | C76: 小学数学 | D76: 208.5 | E76: 91.80 | F76: 41.70 | G76: 45.90 | H76: 87.60 | I76: 5 | J76: 入围体检
A77: 7 | B77: 樊仟 | C77: 小学数学 | D77: 212.0 | E77: 90.30 | F77: 42.40 | G77: 45.15 | H77: 87.55 | I77: 7 | J77: 入围体检
A78: 8 | B78: 尹慧慧 | C78: 小学数学 | D78: 208.5 | E78: 91.28 | F78: 41.70 | G78: 45.64 | H78: 87.34 | I78: 8 | J78: 入围体检
A79: 9 | B79: 张君艳 | C79: 小学数学 | D79: 208.0 | E79: 90.82 | F79: 41.60 | G79: 45.41 | H79: 87.01 | I79: 9 | J79: 入围体检
A80: 10 | B80: 曾婷 | C80: 小学数学 | D80: 208.0 | E80: 90.42 | F80: 41.60 | G80: 45.21 | H80: 86.81 | I80: 10 | J80: 入围体检
A81: 11 | B81: 黄文慧 | C81: 小学数学 | D81: 207.5 | E81: 90.48 | F81: 41.50 | G81: 45.24 | H81: 86.74 | I81: 11 | J81: 入围体检
A82: 12 | B82: 杨甜甜 | C82: 小学数学 | D82: 204.0 | E82: 91.82 | F82: 40.80 | G82: 45.91 | H82: 86.71 | I82: 12 | J82: 入围体检
A83: 13 | B83: 朱慧 | C83: 小学数学 | D83: 206.0 | E83: 91.02 | F83: 41.20 | G83: 45.51 | H83: 86.71 | I83: 12
A84: 14 | B84: 黄雨欣 | C84: 小学数学 | D84: 210.0 | E84: 89.26 | F84: 42.00 | G84: 44.63 | H84: 86.63 | I84: 14
A85: 15 | B85: 肖婷 | C85: 小学数学 | D85: 208.5 | E85: 89.74 | F85: 41.70 | G85: 44.87 | H85: 86.57 | I85: 15
A86: 16 | B86: 龚非环 | C86: 小学数学 | D86: 203.5 | E86: 90.90 | F86: 40.70 | G86: 45.45 | H86: 86.15 | I86: 16
A87: 17 | B87: 胡小涛 | C87: 小学数学 | D87: 202.0 | E87: 91.20 | F87: 40.40 | G87: 45.60 | H87: 86.00 | I87: 17
A88: 18 | B88: 胡丽英 | C88: 小学数学 | D88: 203.0 | E88: 90.18 | F88: 40.60 | G88: 45.09 | H88: 85.69 | I88: 18
A89: 19 | B89: 王淑琰 | C89: 小学数学 | D89: 204.0 | E89: 89.70 | F89: 40.80 | G89: 44.85 | H89: 85.65 | I89: 19
A90: 20 | B90: 罗佳琴 | C90: 小学数学 | D90: 202.5 | E90: 89.90 | F90: 40.50 | G90: 44.95 | H90: 85.45 | I90: 20
A91: 21 | B91: 谭紫微 | C91: 小学数学 | D91: 203.5 | E91: 89.44 | F91: 40.70 | G91: 44.72 | H91: 85.42 | I91: 21
A92: 22 | B92: 黄承慧 | C92: 小学数学 | D92: 201.5 | E92: 89.84 | F92: 40.30 | G92: 44.92 | H92: 85.22 | I92: 22
A93: 23 | B93: 董雨 | C93: 小学数学 | D93: 201.0 | E93: 89.70 | F93: 40.20 | G93: 44.85 | H93: 85.05 | I93: 23
A94: 24 | B94: 吴怡 | C94: 小学数学 | D94: 200.5 | E94: 85.88 | F94: 40.10 | G94: 42.94 | H94: 83.04 | I94: 24
A95: 初中数学（特岗）招聘1人
A96: 序号 | B96: 姓名 | C96: 报考职位 | D96: 笔试成绩 （250分） | E96: 面试成绩 （100分） | F96: 笔试成绩折算 （20%） | G96: 面试成绩折算 （50%） | H96: 总分 | I96: 名次 | J96: 备注
A97: 1 | B97: 姚薇 | C97: 初中数学 | D97: 173.5 | E97: 89.18 | F97: =D97*0.2 -> 34.70 | G97: 44.59 | H97: =F97+G97 -> 79.29 | I97: 1 | J97: 入围体检
A98: 2 | B98: 郭强强 | C98: 初中数学 | D98: 162.5 | E98: 89.80 | F98: 32.50 | G98: 44.90 | H98: 77.40 | I98: 2
A99: 3 | B99: 曾小娟 | C99: 初中数学 | D99: 159 | E99: 87.84 | F99: 31.80 | G99: 43.92 | H99: 75.72 | I99: 3
A100: 初中数学招聘6人
A101: 序号 | B101: 姓名 | C101: 报考职位 | D101: 笔试成绩 （250分） | E101: 面试成绩 （100分） | F101: 笔试成绩折算 （20%） | G101: 面试成绩折算 （50%） | H101: 总分 | I101: 名次 | J101: 备注
A102: 1 | B102: 罗学勤 | C102: 初中数学 | D102: 214.5 | E102: 92.08 | F102: =D102*0.2 -> 42.90 | G102: =E102*0.5 -> 46.04 | H102: =F102+G102 -> 88.94 | I102: 1 | J102: 入围体检
A103: 2 | B103: 夏涛 | C103: 初中数学 | D103: 217.5 | E103: 90.46 | F103: 43.50 | G103: 45.23 | H103: 88.73 | I103: 2 | J103: 入围体检
A104: 3 | B104: 郭雲 | C104: 初中数学 | D104: 210.5 | E104: 92.34 | F104: 42.10 | G104: 46.17 | H104: 88.27 | I104: 3 | J104: 入围体检
A105: 4 | B105: 刘娇 | C105: 初中数学 | D105: 205.5 | E105: 92.98 | F105: 41.10 | G105: 46.49 | H105: 87.59 | I105: 4 | J105: 入围体检
A106: 5 | B106: 刘堂晖 | C106: 初中数学 | D106: 214.0 | E106: 88.78 | F106: 42.80 | G106: 44.39 | H106: 87.19 | I106: 5 | J106: 入围体检
A107: 6 | B107: 肖怡萱 | C107: 初中数学 | D107: 203.0 | E107: 93.14 | F107: 40.60 | G107: 46.57 | H107: 87.17 | I107: 6 | J107: 入围体检
A108: 7 | B108: 周慧慧 | C108: 初中数学 | D108: 199.5 | E108: 92.78 | F108: 39.90 | G108: 46.39 | H108: 86.29 | I108: 7
A109: 8 | B109: 付金梦 | C109: 初中数学 | D109: 200.5 | E109: 92.00 | F109: 40.10 | G109: 46.00 | H109: 86.10 | I109: 8
A110: 9 | B110: 许一凡 | C110: 初中数学 | D110: 198.5 | E110: 92.28 | F110: 39.70 | G110: 46.14 | H110: 85.84 | I110: 9
A111: 10 | B111: 惠志晨 | C111: 初中数学 | D111: 192.5 | E111: 92.06 | F111: 38.50 | G111: 46.03 | H111: 84.53 | I111: 10
A112: 11 | B112: 余苏芳 | C112: 初中数学 | D112: 197.5 | E112: 89.82 | F112: 39.50 | G112: 44.91 | H112: 84.41 | I112: 11
A113: 12 | B113: 卢龙商 | C113: 初中数学 | D113: 195.5 | E113: 90.00 | F113: 39.10 | G113: 45.00 | H113: 84.10 | I113: 12
A114: 13 | B114: 蔡萍 | C114: 初中数学 | D114: 193.0 | E114: 89.94 | F114: 38.60 | G114: 44.97 | H114: 83.57 | I114: 13
A115: 14 | B115: 杨莹 | C115: 初中数学 | D115: 191.0 | E115: 88.26 | F115: 38.20 | G115: 44.13 | H115: 82.33 | I115: 14
A116: 15 | B116: 戴寒玉 | C116: 初中数学 | D116: 193.5 | E116: 84.62 | F116: 38.70 | G116: 42.31 | H116: 81.01 | I116: 15
A117: 小学数学（特岗）招聘4人
A118: 序号 | B118: 姓名 | C118: 报考职位 | D118: 笔试成绩 （250分） | E118: 面试成绩 （100分） | F118: 笔试成绩折算 （20%） | G118: 面试成绩折算 （50%） | H118: 总分 | I118: 名次 | J118: 备注
A119: 1 | B119: 陈慧燕 | C119: 小学数学 | D119: 210.5 | E119: 93.04 | F119: =D119*0.2 -> 42.10 | G119: =E119*0.5 -> 46.52 | H119: =F119+G119 -> 88.62 | I119: 1 | J119: 入围体检
A120: 2 | B120: 温俊杰 | C120: 小学数学 | D120: 213.5 | E120: 91.74 | F120: 42.70 | G120: 45.87 | H120: 88.57 | I120: 2 | J120: 入围体检
A121: 3 | B121: 龙蓉蓉 | C121: 小学数学 | D121: 211.5 | E121: 92.52 | F121: 42.30 | G121: 46.26 | H121: 88.56 | I121: 3 | J121: 入围体检
A122: 4 | B122: 潘丽 | C122: 小学数学 | D122: 212 | E122: 92.10 | F122: 42.40 | G122: 46.05 | H122: 88.45 | I122: 4 | J122: 入围体检
A123: 5 | B123: 樊玲 | C123: 小学数学 | D123: 210.5 | E123: 92.64 | F123: 42.10 | G123: 46.32 | H123: 88.42 | I123: 5
A124: 6 | B124: 陈滢 | C124: 小学数学 | D124: 210 | E124: 92.60 | F124: 42.00 | G124: 46.30 | H124: 88.30 | I124: 6
A125: 7 | B125: 陈焰燕 | C125: 小学数学 | D125: 213 | E125: 91.20 | F125: 42.60 | G125: 45.60 | H125: 88.20 | I125: 7
A126: 8 | B126: 李友美 | C126: 小学数学 | D126: 217.5 | E126: 89.14 | F126: 43.50 | G126: 44.57 | H126: 88.07 | I126: 8
A127: 9 | B127: 赖丁连君 | C127: 小学数学 | D127: 207 | E127: 93.32 | F127: 41.40 | G127: 46.66 | H127: 88.06 | I127: 9
A128: 10 | B128: 温情 | C128: 小学数学 | D128: 209.5 | E128: 92.22 | F128: 41.90 | G128: 46.11 | H128: 88.01 | I128: 10
A129: 11 | B129: 陈欣琪 | C129: 小学数学 | D129: 212 | E129: 91.10 | F129: 42.40 | G129: 45.55 | H129: 87.95 | I129: 11
A130: 12 | B130: 周宸宇 | C130: 小学数学 | D130: 211 | E130: 91.02 | F130: 42.20 | G130: 45.51 | H130: 87.71 | I130: 12
A131: 13 | B131: 程淑敏 | C131: 小学数学 | D131: 207 | E131: 89.92 | F131: 41.40 | G131: 44.96 | H131: 86.36 | I131: 13
A132: 初中英语招聘2人
A133: 序号 | B133: 姓名 | C133: 报考职位 | D133: 笔试成绩 （250分） | E133: 面试成绩 （100分） | F133: 笔试成绩折算 （20%） | G133: 面试成绩折算 （50%） | H133: 总分 | I133: 名次 | J133: 备注
A134: 1 | B134: 李丽 | C134: 初中英语 | D134: 213.0 | E134: 89.68 | F134: =D134*0.2 -> 42.60 | G134: =E134*0.5 -> 44.84 | H134: =F134+G134 -> 87.44 | I134: 1 | J134: 入围体检
A135: 2 | B135: 罗丽 | C135: 初中英语 | D135: 201.5 | E135: 91.26 | F135: 40.30 | G135: 45.63 | H135: 85.93 | I135: 2 | J135: 入围体检
A136: 3 | B136: 罗安琪 | C136: 初中英语 | D136: 199.5 | E136: 90.40 | F136: 39.90 | G136: 45.20 | H136: 85.10 | I136: 3
A137: 4 | B137: 韦宇霞 | C137: 初中英语 | D137: 193.5 | E137: 90.36 | F137: 38.70 | G137: 45.18 | H137: 83.88 | I137: 4
A138: 5 | B138: 张威 | C138: 初中英语 | D138: 201.0 | E138: 87.08 | F138: 40.20 | G138: 43.54 | H138: 83.74 | I138: 5
A139: 6 | B139: 刘珊 | C139: 初中英语 | D139: 196.5 | E139: 88.22 | F139: 39.30 | G139: 44.11 | H139: 83.41 | I139: 6
A140: 初中英语（特岗）招聘1人
A141: 序号 | B141: 姓名 | C141: 报考职位 | D141: 笔试成绩 （250分） | E141: 面试成绩 （100分） | F141: 笔试成绩折算 （20%） | G141: 面试成绩折算 （50%） | H141: 总分 | I141: 名次 | J141: 备注
A142: 1 | B142: 王小梅 | C142: 初中英语 | D142: 201.25 | E142: 89.56 | F142: =D142*0.2 -> 40.25 | G142: =E142*0.5 -> 44.78 | H142: =F142+G142 -> 85.03 | I142: 1 | J142: 入围体检
A143: 2 | B143: 殷世思 | C143: 初中英语 | D143: 199.5 | E143: 88.84 | F143: 39.90 | G143: 44.42 | H143: 84.32 | I143: 2
A144: 3 | B144: 付思兰 | C144: 初中英语 | D144: 193.25 | E144: 84.54 | F144: 38.65 | G144: 42.27 | H144: 80.92 | I144: 3
A145: 小学英语（特岗）招聘2人
A146: 序号 | B146: 姓名 | C146: 报考职位 | D146: 笔试成绩 （250分） | E146: 面试成绩 （100分） | F146: 笔试成绩折算 （20%） | G146: 面试成绩折算 （50%） | H146: 总分 | I146: 名次 | J146: 备注
A147: 1 | B147: 文金 | C147: 小学英语 | D147: 194 | E147: 90.58 | F147: =D147*0.2 -> 38.80 | G147: =E147*0.5 -> 45.29 | H147: =F147+G147 -> 84.09 | I147: 1 | J147: 入围体检
A148: 2 | B148: 曹佳琪 | C148: 小学英语 | D148: 187.5 | E148: 91.20 | F148: 37.50 | G148: 45.60 | H148: 83.10 | I148: 2 | J148: 入围体检
A149: 3 | B149: 段幸子 | C149: 小学英语 | D149: 186.5 | E149: 89.90 | F149: 37.30 | G149: 44.95 | H149: 82.25 | I149: 3
A150: 4 | B150: 梁惠 | C150: 小学英语 | D150: 182 | E150: 91.12 | F150: 36.40 | G150: 45.56 | H150: 81.96 | I150: 4
A151: 5 | B151: 李恬 | C151: 小学英语 | D151: 178.75 | E151: 88.66 | F151: 35.75 | G151: 44.33 | H151: 80.08 | I151: 5
A152: 6 | B152: 黄婷 | C152: 小学英语 | D152: 180 | E152: 87.04 | F152: 36.00 | G152: 43.52 | H152: 79.52 | I152: 6
A153: 初中物理招聘2人
A154: 序号 | B154: 姓名 | C154: 报考职位 | D154: 笔试成绩 （250分） | E154: 面试成绩 （100分） | F154: 笔试成绩折算 （20%） | G154: 面试成绩折算 （50%） | H154: 总分 | I154: 名次 | J154: 备注
A155: 1 | B155: 黄芷琪 | C155: 初中物理 | D155: 189.0 | E155: 85.60 | F155: =D155*0.2 -> 37.80 | G155: =E155*0.5 -> 42.80 | H155: =F155+G155 -> 80.60 | I155: 1 | J155: 入围体检
A156: 2 | B156: 朱经耀 | C156: 初中物理 | D156: 185.0 | E156: 81.80 | F156: 37.00 | G156: 40.90 | H156: 77.90 | I156: 2 | J156: 入围体检
A157: 3 | B157: 郭丹丹 | C157: 初中物理 | D157: 180.0 | E157: 82.20 | F157: 36.00 | G157: 41.10 | H157: 77.10 | I157: 3
A158: 4 | B158: 章昊天 | C158: 初中物理 | D158: 182.0 | E158: 79.40 | F158: 36.40 | G158: 39.70 | H158: 76.10 | I158: 4
A159: 5 | B159: 李静宜 | C159: 初中物理 | D159: 177.5 | E159: 79.20 | F159: 35.50 | G159: 39.60 | H159: 75.10 | I159: 5
A160: 6 | B160: 郭学翔 | C160: 初中物理 | D160: 168.0 | E160: 81.20 | F160: 33.60 | G160: 40.60 | H160: 74.20 | I160: 6
A161: 初中物理（特岗）招聘1人
A162: 序号 | B162: 姓名 | C162: 报考职位 | D162: 笔试成绩 （250分） | E162: 面试成绩 （100分） | F162: 笔试成绩折算 （20%） | G162: 面试成绩折算 （50%） | H162: 总分 | I162: 名次 | J162: 备注
A163: 1 | B163: 吴永波 | C163: 初中物理 | D163: 179 | E163: 83.20 | F163: =D163*0.2 -> 35.80 | G163: =E163*0.5 -> 41.60 | H163: =F163+G163 -> 77.40 | I163: 1 | J163: 入围体检
A164: 2 | B164: 石义洪 | C164: 初中物理 | D164: 181.5 | E164: 81.20 | F164: 36.30 | G164: 40.60 | H164: 76.90 | I164: 2
A165: 3 | B165: 李丽华 | C165: 初中物理 | D165: 150.5 | E165: 78.80 | F165: 30.10 | G165: 39.40 | H165: 69.50 | I165: 3
A166: 初中化学招聘1人
A167: 序号 | B167: 姓名 | C167: 报考职位 | D167: 笔试成绩 （250分） | E167: 面试成绩 （100分） | F167: 笔试成绩折算 （20%） | G167: 面试成绩折算 （50%） | H167: 总分 | I167: 名次 | J167: 备注
A168: 1 | B168: 饶歆 | C168: 初中化学 | D168: 182.5 | E168: 89.82 | F168: =D168*0.2 -> 36.50 | G168: =E168*0.5 -> 44.91 | H168: =F168+G168 -> 81.41 | I168: 1 | J168: 入围体检
A169: 2 | B169: 况勍 | C169: 初中化学 | D169: 175.0 | E169: 86.84 | F169: 35.00 | G169: 43.42 | H169: 78.42 | I169: 2
A170: 3 | B170: 刘东 | C170: 初中化学 | D170: 171.5 | E170: 85.14 | F170: 34.30 | G170: 42.57 | H170: 76.87 | I170: 3
A171: 初中地理招聘1人
A172: 序号 | B172: 姓名 | C172: 报考职位 | D172: 笔试成绩 （250分） | E172: 面试成绩 （100分） | F172: 笔试成绩折算 （20%） | G172: 面试成绩折算 （50%） | H172: 总分 | I172: 名次 | J172: 备注
A173: 1 | B173: 朱宏 | C173: 初中地理 | D173: 203.0 | E173: 84.84 | F173: =D173*0.2 -> 40.60 | G173: =E173*0.5 -> 42.42 | H173: =F173+G173 -> 83.02 | I173: 1 | J173: 入围体检
A174: 2 | B174: 李茜 | C174: 初中地理 | D174: 184.0 | E174: 87.56 | F174: 36.80 | G174: 43.78 | H174: 80.58 | I174: 2
A175: 初中生物（特岗）招聘1人
A176: 序号 | B176: 姓名 | C176: 报考职位 | D176: 笔试成绩 （250分） | E176: 面试成绩 （100分） | F176: 笔试成绩折算 （20%） | G176: 面试成绩折算 （50%） | H176: 总分 | I176: 名次 | J176: 备注
A177: 1 | B177: 刘梓琪 | C177: 初中生物 | D177: 213 | E177: 87.44 | F177: 42.60 | G177: 43.72 | H177: 86.32 | I177: 1 | J177: 入围体检
A178: 2 | B178: 周江萍 | C178: 初中生物 | D178: 202.5 | E178: 87.36 | F178: 40.50 | G178: 43.68 | H178: 84.18 | I178: 2
A179: 3 | B179: 焦玲 | C179: 初中生物 | D179: 198 | E179: 84.36 | F179: 39.60 | G179: 42.18 | H179: 81.78 | I179: 3
A180: 初中道德与法治招聘4人
A181: 序号 | B181: 姓名 | C181: 报考职位 | D181: 笔试成绩 （250分） | E181: 面试成绩 （100分） | F181: 笔试成绩折算 （20%） | G181: 面试成绩折算 （50%） | H181: 总分 | I181: 名次 | J181: 备注
A182: 1 | B182: 刘鹏飞 | C182: 初中道法 | D182: 218.5 | E182: 86.54 | F182: =D182*0.2 -> 43.70 | G182: =E182*0.5 -> 43.27 | H182: =F182+G182 -> 86.97 | I182: 1 | J182: 入围体检
A183: 2 | B183: 周容 | C183: 初中道法 | D183: 220.5 | E183: 85.54 | F183: 44.10 | G183: 42.77 | H183: 86.87 | I183: 2 | J183: 入围体检
A184: 3 | B184: 傅艳 | C184: 初中道法 | D184: 217.0 | E184: 86.48 | F184: 43.40 | G184: 43.24 | H184: 86.64 | I184: 3 | J184: 入围体检
A185: 4 | B185: 廖云 | C185: 初中道法 | D185: 217.5 | E185: 85.92 | F185: 43.50 | G185: 42.96 | H185: 86.46 | I185: 4 | J185: 入围体检
A186: 5 | B186: 郑凤珍 | C186: 初中道法 | D186: 219.0 | E186: 84.86 | F186: 43.80 | G186: 42.43 | H186: 86.23 | I186: 5
A187: 6 | B187: 丁佳慧 | C187: 初中道法 | D187: 213.5 | E187: 84.76 | F187: 42.70 | G187: 42.38 | H187: 85.08 | I187: 6
A188: 7 | B188: 曾志敏 | C188: 初中道法 | D188: 204.0 | E188: 83.82 | F188: 40.80 | G188: 41.91 | H188: 82.71 | I188: 7
A189: 8 | B189: 王宝娟 | C189: 初中道法 | D189: 199.5 | E189: 83.84 | F189: 39.90 | G189: 41.92 | H189: 81.82 | I189: 8
A190: 9 | B190: 黄丹 | C190: 初中道法 | D190: 197.0 | E190: 83.96 | F190: 39.40 | G190: 41.98 | H190: 81.38 | I190: 9
A191: 10 | B191: 吴佳琪 | C191: 初中道法 | D191: 194.5 | E191: 83.40 | F191: 38.90 | G191: 41.70 | H191: 80.6 | I191: 10
A192: 11 | B192: 易超群 | C192: 初中道法 | D192: 194.5 | E192: 82.22 | F192: 38.90 | G192: 41.11 | H192: 80.01 | I192: 11
A193: 12 | B193: 叶明花 | C193: 初中道法 | D193: 194.0 | E193: 0 | F193: 38.80 | G193: 0.00 | H193: 38.8 | I193: 12
A194: 初中道德与法治（特岗）招聘2人
A195: 序号 | B195: 姓名 | C195: 报考职位 | D195: 笔试成绩 （250分） | E195: 面试成绩 （100分） | F195: 笔试成绩折算 （20%） | G195: 面试成绩折算 （50%） | H195: 总分 | I195: 名次 | J195: 备注
A196: 1 | B196: 潘颖 | C196: 初中道法 | D196: 218 | E196: 86.5 | F196: =D196*0.2 -> 43.60 | G196: =E196*0.5 -> 43.25 | H196: =F196+G196 -> 86.85 | I196: 1 | J196: 入围体检
A197: 2 | B197: 张梦悠 | C197: 初中道法 | D197: 216.5 | E197: 85.36 | F197: 43.30 | G197: 42.68 | H197: 85.98 | I197: 2 | J197: 入围体检
A198: 3 | B198: 张妙林 | C198: 初中道法 | D198: 211 | E198: 85.62 | F198: 42.20 | G198: 42.81 | H198: 85.01 | I198: 3
A199: 4 | B199: 周艺芝 | C199: 初中道法 | D199: 205.5 | E199: 84.64 | F199: 41.10 | G199: 42.32 | H199: 83.42 | I199: 4
A200: 5 | B200: 黄慧琳 | C200: 初中道法 | D200: 201.5 | E200: 83.72 | F200: 40.30 | G200: 41.86 | H200: 82.16 | I200: 5
... 161 more rows
